[Event "Early-Titled-Tuesday-Blitz-January-23-2024"]
[Site "Chess.com"]
[Date "2024.01.23"]
[Round "4"]
[White "MightyGMpretender"]
[Black "Airquake"]
[Result "1-0"]
[WhiteElo "2749"]
[BlackElo "2533"]
[TimeControl "180+1"]
[EndTime "8:36:41 PST"]
[Termination "MightyGMpretender won by resignation"]

1. d4 {[%clk 0:03:00]} 1... e6 {[%clk 0:02:59.4]} 2. c4 {[%clk 0:02:58.6]} 2...
d5 {[%clk 0:02:59.2]} 3. Nc3 {[%clk 0:02:57.9]} 3... Nf6 {[%clk 0:02:59]} 4.
cxd5 {[%clk 0:02:57.6]} 4... exd5 {[%clk 0:02:59.1]} 5. Bg5 {[%clk 0:02:58.3]}
5... Nbd7 {[%clk 0:02:58]} 6. e3 {[%clk 0:02:53.3]} 6... h6 {[%clk 0:02:57.7]}
7. Bh4 {[%clk 0:02:53.4]} 7... Be7 {[%clk 0:02:56.6]} 8. Bd3 {[%clk 0:02:53.3]}
8... O-O {[%clk 0:02:56.2]} 9. Nf3 {[%clk 0:02:50.6]} 9... b6 {[%clk 0:02:56.5]}
10. O-O {[%clk 0:02:50]} 10... Bb7 {[%clk 0:02:56.8]} 11. Rc1 {[%clk 0:02:45.5]}
11... c5 {[%clk 0:02:42.1]} 12. Re1 {[%clk 0:02:39.2]} 12... Ne4 {[%clk
0:02:39]} 13. Bxe7 {[%clk 0:02:29.5]} 13... Qxe7 {[%clk 0:02:38.9]} 14. dxc5
{[%clk 0:02:30]} 14... Nxc3 {[%clk 0:02:25.4]} 15. Rxc3 {[%clk 0:02:26.7]} 15...
bxc5 {[%clk 0:02:26.3]} 16. Bf5 {[%clk 0:02:10.5]} 16... Nf6 {[%clk 0:02:08.4]}
17. Qc2 {[%clk 0:02:03.2]} 17... g6 {[%clk 0:02:07.4]} 18. Bd3 {[%clk
0:01:44.1]} 18... Rac8 {[%clk 0:02:05.6]} 19. Rc1 {[%clk 0:01:22.3]} 19... c4
{[%clk 0:01:34.1]} 20. Be2 {[%clk 0:01:21.9]} 20... Ne4 {[%clk 0:01:34.4]} 21.
Ra3 {[%clk 0:01:22.6]} 21... Rfe8 {[%clk 0:01:27]} 22. Nd4 {[%clk 0:01:18.4]}
22... a6 {[%clk 0:01:25.5]} 23. Bf3 {[%clk 0:01:15]} 23... Nc5 {[%clk
0:01:21.7]} 24. Rc3 {[%clk 0:01:09.7]} 24... Nd3 {[%clk 0:01:19.8]} 25. Rd1
{[%clk 0:01:07.3]} 25... Qb4 {[%clk 0:01:15.4]} 26. Qd2 {[%clk 0:00:55.2]} 26...
Ba8 {[%clk 0:00:57.9]} 27. Rxd3 {[%clk 0:00:54.5]} 27... cxd3 {[%clk 0:00:48.6]}
28. Qxb4 {[%clk 0:00:53.9]} 1-0

[Event "Early-Titled-Tuesday-Blitz-January-23-2024"]
[Site "Chess.com"]
[Date "2024.01.23"]
[Round "4"]
[White "Philosopherrr"]
[Black "Sanyura"]
[Result "0-1"]
[WhiteElo "2434"]
[BlackElo "2616"]
[TimeControl "180+1"]
[EndTime "8:36:42 PST"]
[Termination "Sanyura won on time"]

1. e4 {[%clk 0:03:00.9]} 1... c5 {[%clk 0:02:59.8]} 2. Nf3 {[%clk 0:02:57]} 2...
e6 {[%clk 0:03:00.1]} 3. d4 {[%clk 0:02:56.8]} 3... cxd4 {[%clk 0:03:00.6]} 4.
Nxd4 {[%clk 0:02:57.7]} 4... Nf6 {[%clk 0:03:00.8]} 5. Nc3 {[%clk 0:02:58.2]}
5... Nc6 {[%clk 0:03:01.3]} 6. Nxc6 {[%clk 0:02:57.8]} 6... bxc6 {[%clk
0:03:01.6]} 7. Bd3 {[%clk 0:02:57.3]} 7... d5 {[%clk 0:03:01.6]} 8. O-O {[%clk
0:02:57.3]} 8... Be7 {[%clk 0:03:01.8]} 9. Qf3 {[%clk 0:02:57.1]} 9... O-O
{[%clk 0:02:58.5]} 10. b3 {[%clk 0:02:57.5]} 10... a5 {[%clk 0:02:58.1]} 11. Bb2
{[%clk 0:02:57.9]} 11... Ba6 {[%clk 0:02:58.6]} 12. Rad1 {[%clk 0:02:58]} 12...
Qb6 {[%clk 0:02:53.8]} 13. Rfe1 {[%clk 0:02:03.5]} 13... Bxd3 {[%clk 0:02:48.8]}
14. cxd3 {[%clk 0:02:00.9]} 14... a4 {[%clk 0:02:49.2]} 15. Nxa4 {[%clk
0:01:57]} 15... Qb4 {[%clk 0:02:35.8]} 16. Bc3 {[%clk 0:01:52]} 16... Qb5 {[%clk
0:02:33.9]} 17. Rc1 {[%clk 0:01:44.5]} 17... Rfd8 {[%clk 0:02:30.3]} 18. Bxf6
{[%clk 0:01:38.5]} 18... Bxf6 {[%clk 0:02:30.4]} 19. Rc5 {[%clk 0:01:24.4]}
19... Qb4 {[%clk 0:02:29.9]} 20. Rec1 {[%clk 0:01:24]} 20... Bg5 {[%clk
0:02:02]} 21. R1c3 {[%clk 0:01:04]} 21... Rxa4 {[%clk 0:02:00.9]} 22. Qg3 {[%clk
0:00:32.2]} 22... Rxa2 {[%clk 0:01:57.3]} 23. h4 {[%clk 0:00:29.7]} 23... Bf6
{[%clk 0:01:52.1]} 24. e5 {[%clk 0:00:26.7]} 24... Bxh4 {[%clk 0:01:52.2]} 25.
Qf3 {[%clk 0:00:17]} 25... Bxf2+ {[%clk 0:01:52]} 26. Qxf2 {[%clk 0:00:07.9]}
26... Rxf2 {[%clk 0:01:50.8]} 27. Rxc6 {[%clk 0:00:08.8]} 27... Qd4 {[%clk
0:01:46.3]} 0-1

[Event "Early-Titled-Tuesday-Blitz-January-23-2024"]
[Site "Chess.com"]
[Date "2024.01.23"]
[Round "4"]
[White "Msb2"]
[Black "maciek_92"]
[Result "1-0"]
[WhiteElo "3060"]
[BlackElo "2830"]
[TimeControl "180+1"]
[EndTime "8:36:44 PST"]
[Termination "Msb2 won by resignation"]

1. d4 {[%clk 0:03:00.9]} 1... Nf6 {[%clk 0:02:59.9]} 2. c4 {[%clk 0:03:01.3]}
2... e6 {[%clk 0:03:00.2]} 3. Nc3 {[%clk 0:03:02]} 3... Bb4 {[%clk 0:03:00.1]}
4. e3 {[%clk 0:03:02.1]} 4... O-O {[%clk 0:03:00]} 5. Bd2 {[%clk 0:03:02.8]}
5... d5 {[%clk 0:03:00]} 6. Nf3 {[%clk 0:03:03.4]} 6... b6 {[%clk 0:02:59.3]} 7.
cxd5 {[%clk 0:03:03.8]} 7... exd5 {[%clk 0:02:59.4]} 8. Rc1 {[%clk 0:03:04.4]}
8... a6 {[%clk 0:02:56.5]} 9. Bd3 {[%clk 0:03:04.4]} 9... Re8 {[%clk 0:02:55.2]}
10. Ne5 {[%clk 0:03:03.7]} 10... Bb7 {[%clk 0:02:52.8]} 11. O-O {[%clk
0:03:02.7]} 11... Bd6 {[%clk 0:02:49.9]} 12. f4 {[%clk 0:03:03]} 12... c5 {[%clk
0:02:50.3]} 13. Be1 {[%clk 0:03:02.9]} 13... c4 {[%clk 0:02:35.8]} 14. Bb1
{[%clk 0:02:59.6]} 14... b5 {[%clk 0:02:36]} 15. a3 {[%clk 0:02:58.2]} 15... Ne4
{[%clk 0:02:03.9]} 16. Qf3 {[%clk 0:02:41.9]} 16... f5 {[%clk 0:01:43.1]} 17. g4
{[%clk 0:02:35.6]} 17... Nd7 {[%clk 0:01:39]} 18. gxf5 {[%clk 0:02:30.4]} 18...
Ndf6 {[%clk 0:01:38.8]} 19. Bh4 {[%clk 0:02:30.8]} 19... Nd2 {[%clk 0:00:53.5]}
20. Qg2 {[%clk 0:02:23.4]} 20... Nxf1 {[%clk 0:00:53.2]} 21. Rxf1 {[%clk
0:02:24.3]} 21... Be7 {[%clk 0:00:53.5]} 22. Kh1 {[%clk 0:02:21.8]} 22... Qd6
{[%clk 0:00:34.8]} 23. Rg1 {[%clk 0:02:19.1]} 23... Bf8 {[%clk 0:00:35.5]} 24.
Bxf6 {[%clk 0:02:10.6]} 24... Qxf6 {[%clk 0:00:34.8]} 25. Nxd5 {[%clk
0:02:10.9]} 25... Qh6 {[%clk 0:00:16.3]} 26. Be4 {[%clk 0:02:09.7]} 26... Rad8
{[%clk 0:00:13.6]} 27. f6 {[%clk 0:02:07.7]} 27... Re6 {[%clk 0:00:11.7]} 28.
Ne7+ {[%clk 0:01:43.9]} 28... Rxe7 {[%clk 0:00:04]} 29. fxe7 {[%clk 0:01:44.8]}
29... Bxe4 {[%clk 0:00:01.8]} 1-0

[Event "Early-Titled-Tuesday-Blitz-January-23-2024"]
[Site "Chess.com"]
[Date "2024.01.23"]
[Round "4"]
[White "JoliyRoger"]
[Black "CaspiIsrael"]
[Result "0-1"]
[WhiteElo "2462"]
[BlackElo "2686"]
[TimeControl "180+1"]
[EndTime "8:36:45 PST"]
[Termination "CaspiIsrael won by resignation"]

1. d4 {[%clk 0:02:52.6]} 1... f5 {[%clk 0:02:59.9]} 2. Nf3 {[%clk 0:02:47.9]}
2... Nf6 {[%clk 0:03:00]} 3. Bg5 {[%clk 0:02:48.5]} 3... Ne4 {[%clk 0:02:55.8]}
4. Bf4 {[%clk 0:02:46.8]} 4... e6 {[%clk 0:02:55.5]} 5. Nbd2 {[%clk 0:02:47.2]}
5... Nf6 {[%clk 0:02:54.8]} 6. e3 {[%clk 0:02:47]} 6... b6 {[%clk 0:02:54.6]} 7.
Bd3 {[%clk 0:02:46.9]} 7... Bb7 {[%clk 0:02:55.2]} 8. Qe2 {[%clk 0:02:47.4]}
8... d5 {[%clk 0:02:35.2]} 9. c4 {[%clk 0:02:44.5]} 9... Bd6 {[%clk 0:02:34.4]}
10. Ne5 {[%clk 0:02:39.9]} 10... O-O {[%clk 0:02:34.1]} 11. Ndf3 {[%clk
0:02:40.1]} 11... Bb4+ {[%clk 0:02:32.2]} 12. Kf1 {[%clk 0:02:34.6]} 12... Bd6
{[%clk 0:02:30.3]} 13. Rc1 {[%clk 0:02:33.1]} 13... Nbd7 {[%clk 0:02:28.8]} 14.
Bg5 {[%clk 0:01:44.4]} 14... Rc8 {[%clk 0:02:02.4]} 15. cxd5 {[%clk 0:01:37.9]}
15... Bxd5 {[%clk 0:02:00.5]} 16. Nc6 {[%clk 0:01:34.1]} 16... Qe8 {[%clk
0:01:53.3]} 17. Nxa7 {[%clk 0:01:26.5]} 17... Ra8 {[%clk 0:01:53.3]} 18. Nb5
{[%clk 0:01:26.1]} 18... Rxa2 {[%clk 0:01:53.1]} 19. Nc3 {[%clk 0:01:16.4]}
19... Ra5 {[%clk 0:01:48]} 20. Bb5 {[%clk 0:01:08.5]} 20... Bb7 {[%clk 0:01:37]}
21. Bxf6 {[%clk 0:00:47.8]} 21... Rxf6 {[%clk 0:01:32.3]} 22. Ne5 {[%clk
0:00:44.4]} 22... Bxe5 {[%clk 0:01:28.7]} 23. dxe5 {[%clk 0:00:45]} 23... Rg6
{[%clk 0:01:29.2]} 24. f3 {[%clk 0:00:40]} 24... c6 {[%clk 0:01:29.4]} 25. Ba4
{[%clk 0:00:27.7]} 25... Ba6 {[%clk 0:01:25.4]} 0-1

[Event "Early-Titled-Tuesday-Blitz-January-23-2024"]
[Site "Chess.com"]
[Date "2024.01.23"]
[Round "4"]
[White "WindWhistler11"]
[Black "lularobs"]
[Result "1-0"]
[WhiteElo "2455"]
[BlackElo "1575"]
[TimeControl "180+1"]
[EndTime "8:36:48 PST"]
[Termination "WindWhistler11 won on time"]

1. Nf3 {[%clk 0:02:47.9]} 1... d5 {[%clk 0:02:59.1]} 2. g3 {[%clk 0:02:47.2]}
2... Nf6 {[%clk 0:02:58.8]} 3. c4 {[%clk 0:02:47.8]} 3... e6 {[%clk 0:02:46]} 4.
Bg2 {[%clk 0:02:47.2]} 4... Be7 {[%clk 0:02:38.7]} 5. O-O {[%clk 0:02:47.1]}
5... O-O {[%clk 0:02:37.9]} 6. b3 {[%clk 0:02:47.1]} 6... b6 {[%clk 0:02:35.2]}
7. Bb2 {[%clk 0:02:45.9]} 7... Bb7 {[%clk 0:02:33.2]} 8. e3 {[%clk 0:02:46.5]}
8... dxc4 {[%clk 0:02:30.4]} 9. bxc4 {[%clk 0:02:47.4]} 9... Na6 {[%clk
0:02:23.6]} 10. Qe2 {[%clk 0:02:45.1]} 10... Nc5 {[%clk 0:02:23.4]} 11. d4
{[%clk 0:02:44.2]} 11... Nce4 {[%clk 0:02:08.7]} 12. Rd1 {[%clk 0:02:44.4]}
12... Qc8 {[%clk 0:01:53]} 13. Na3 {[%clk 0:02:39.5]} 13... a6 {[%clk
0:01:48.9]} 14. Rac1 {[%clk 0:02:39.6]} 14... Rd8 {[%clk 0:01:47.7]} 15. Ne5
{[%clk 0:02:35.5]} 15... c5 {[%clk 0:01:36.3]} 16. f3 {[%clk 0:02:35.9]} 16...
Nd6 {[%clk 0:01:26.7]} 17. Kh1 {[%clk 0:02:28.4]} 17... Nf5 {[%clk 0:01:02.4]}
18. Nc2 {[%clk 0:02:20.1]} 18... cxd4 {[%clk 0:01:00.5]} 19. exd4 {[%clk
0:02:19.9]} 19... Nd7 {[%clk 0:00:22.1]} 20. Nd3 {[%clk 0:02:19.3]} 20... Nf6
{[%clk 0:00:19.3]} 21. Ne5 {[%clk 0:02:15.6]} 21... Nd7 {[%clk 0:00:19]} 22. Ng4
{[%clk 0:02:09.6]} 22... Nf6 {[%clk 0:00:18.4]} 23. Nf2 {[%clk 0:02:09.3]} 23...
Nd6 {[%clk 0:00:16.5]} 24. Ne3 {[%clk 0:02:08.1]} 24... Qb8 {[%clk 0:00:13.8]}
25. c5 {[%clk 0:02:07.4]} 25... bxc5 {[%clk 0:00:14]} 26. dxc5 {[%clk
0:02:08.3]} 26... Nb5 {[%clk 0:00:13.6]} 27. c6 {[%clk 0:02:08.8]} 27... Rxd1+
{[%clk 0:00:12.9]} 28. Qxd1 {[%clk 0:02:08.6]} 28... Bc8 {[%clk 0:00:12.6]} 29.
f4 {[%clk 0:02:07.9]} 29... Qb6 {[%clk 0:00:11.7]} 30. Qe2 {[%clk 0:02:05.9]}
30... Bc5 {[%clk 0:00:10.8]} 31. Nc4 {[%clk 0:02:05.6]} 31... Qc7 {[%clk
0:00:08.9]} 32. Nd3 {[%clk 0:02:06.1]} 32... Be7 {[%clk 0:00:08.4]} 33. Be5
{[%clk 0:02:02.5]} 33... Qd8 {[%clk 0:00:07.6]} 34. c7 {[%clk 0:02:01.9]} 34...
Nxc7 {[%clk 0:00:06.3]} 35. Bxc7 {[%clk 0:02:01.7]} 35... Qxc7 {[%clk
0:00:05.3]} 36. Bxa8 {[%clk 0:02:02.6]} 36... Qa7 {[%clk 0:00:04.4]} 37. Bg2
{[%clk 0:02:02.2]} 37... Bd7 {[%clk 0:00:03.2]} 38. Nce5 {[%clk 0:02:02.6]}
38... Be8 {[%clk 0:00:02.3]} 39. Rc8 {[%clk 0:02:02]} 39... Kf8 {[%clk
0:00:02.5]} 40. Bc6 {[%clk 0:02:01]} 1-0

[Event "Early-Titled-Tuesday-Blitz-January-23-2024"]
[Site "Chess.com"]
[Date "2024.01.23"]
[Round "4"]
[White "abhidabhi"]
[Black "ETTrainer"]
[Result "1-0"]
[WhiteElo "2925"]
[BlackElo "2594"]
[TimeControl "180+1"]
[EndTime "8:36:56 PST"]
[Termination "abhidabhi won by resignation"]

1. e4 {[%clk 0:03:00.9]} 1... e5 {[%clk 0:02:58.5]} 2. Nf3 {[%clk 0:03:01.4]}
2... Nc6 {[%clk 0:02:58.6]} 3. Bb5 {[%clk 0:03:01.6]} 3... g6 {[%clk 0:02:58.8]}
4. d4 {[%clk 0:03:00.2]} 4... exd4 {[%clk 0:02:58.3]} 5. Bg5 {[%clk 0:02:57.7]}
5... Be7 {[%clk 0:02:58.1]} 6. Bxe7 {[%clk 0:02:57.7]} 6... Qxe7 {[%clk
0:02:59]} 7. Bxc6 {[%clk 0:02:57.5]} 7... dxc6 {[%clk 0:02:57]} 8. Qxd4 {[%clk
0:02:57.9]} 8... Nf6 {[%clk 0:02:57.1]} 9. Nc3 {[%clk 0:02:57.4]} 9... Bg4
{[%clk 0:02:56.5]} 10. Nd2 {[%clk 0:02:56.6]} 10... c5 {[%clk 0:02:51.7]} 11.
Qe3 {[%clk 0:02:56.6]} 11... O-O-O {[%clk 0:02:39.9]} 12. h3 {[%clk 0:02:56.4]}
12... Bd7 {[%clk 0:02:35.1]} 13. O-O-O {[%clk 0:02:54.6]} 13... Bc6 {[%clk
0:02:35]} 14. Rhe1 {[%clk 0:02:53.8]} 14... b6 {[%clk 0:02:34.6]} 15. f3 {[%clk
0:02:52.9]} 15... Rhe8 {[%clk 0:02:33]} 16. Nf1 {[%clk 0:02:49.8]} 16... h5
{[%clk 0:02:29.2]} 17. Qg5 {[%clk 0:02:45.5]} 17... Kb7 {[%clk 0:02:26.3]} 18.
Ne3 {[%clk 0:02:42.9]} 18... Rxd1+ {[%clk 0:01:59.9]} 19. Rxd1 {[%clk
0:02:41.2]} 19... Qe5 {[%clk 0:01:59.5]} 20. Qxe5 {[%clk 0:02:27.9]} 20... Rxe5
{[%clk 0:02:00.4]} 21. h4 {[%clk 0:02:26.3]} 21... a5 {[%clk 0:01:55]} 22. a4
{[%clk 0:02:23.2]} 22... Re8 {[%clk 0:01:52.4]} 23. b3 {[%clk 0:02:23]} 23...
Kc8 {[%clk 0:01:46.4]} 24. Nb5 {[%clk 0:02:20.9]} 24... Bxb5 {[%clk 0:01:40.8]}
25. axb5 {[%clk 0:02:20.6]} 25... Rd8 {[%clk 0:01:41.5]} 26. Rxd8+ {[%clk
0:02:10.2]} 26... Kxd8 {[%clk 0:01:42.4]} 27. Kd2 {[%clk 0:02:09.9]} 27... Kd7
{[%clk 0:01:41.5]} 28. Nc4 {[%clk 0:02:08]} 28... Ne8 {[%clk 0:01:35]} 29. e5
{[%clk 0:02:01.7]} 29... Ng7 {[%clk 0:01:33.5]} 30. g4 {[%clk 0:02:01]} 30...
Ne6 {[%clk 0:01:31.7]} 31. c3 {[%clk 0:01:58.2]} 31... Nf4 {[%clk 0:01:22.8]}
32. Ke3 {[%clk 0:01:47.4]} 32... Ng2+ {[%clk 0:01:22.6]} 33. Kf2 {[%clk
0:01:47.5]} 33... Nxh4 {[%clk 0:01:23.2]} 34. Kg3 {[%clk 0:01:47.9]} 34... hxg4
{[%clk 0:01:22.5]} 35. Kxh4 {[%clk 0:01:44.2]} 35... gxf3 {[%clk 0:01:22.8]} 36.
Kg3 {[%clk 0:01:44.4]} 36... Ke6 {[%clk 0:01:23.2]} 37. Kxf3 {[%clk 0:01:44.4]}
37... f6 {[%clk 0:01:23.2]} 38. exf6 {[%clk 0:01:43.4]} 38... Kxf6 {[%clk
0:01:24.1]} 39. Kf4 {[%clk 0:01:42]} 39... Ke6 {[%clk 0:01:20.2]} 40. Ne3 {[%clk
0:01:41.6]} 40... Kd6 {[%clk 0:01:16.5]} 41. c4 {[%clk 0:01:34.8]} 41... Ke6
{[%clk 0:01:16.6]} 42. Nd5 {[%clk 0:01:29.4]} 42... Kd6 {[%clk 0:01:16.5]} 43.
Kg5 {[%clk 0:01:27]} 43... Ke5 {[%clk 0:01:07.5]} 44. Nxc7 {[%clk 0:01:26.6]}
44... Kd4 {[%clk 0:01:08.2]} 45. Nd5 {[%clk 0:01:26.4]} 45... Kd3 {[%clk
0:01:07.3]} 46. Nxb6 {[%clk 0:01:26.7]} 46... Kc2 {[%clk 0:01:08.1]} 47. Nd7
{[%clk 0:01:26.7]} 47... Kxb3 {[%clk 0:01:08.8]} 48. b6 {[%clk 0:01:27.2]} 48...
a4 {[%clk 0:01:09.2]} 49. b7 {[%clk 0:01:26.7]} 1-0

[Event "Early-Titled-Tuesday-Blitz-January-23-2024"]
[Site "Chess.com"]
[Date "2024.01.23"]
[Round "4"]
[White "Ural_bogatyr"]
[Black "GianmarcoVaR"]
[Result "0-1"]
[WhiteElo "2537"]
[BlackElo "2757"]
[TimeControl "180+1"]
[EndTime "8:36:56 PST"]
[Termination "GianmarcoVaR won by resignation"]

1. d4 {[%clk 0:03:00.9]} 1... Nf6 {[%clk 0:02:56.2]} 2. Nc3 {[%clk 0:03:01.3]}
2... d5 {[%clk 0:02:56.1]} 3. Bf4 {[%clk 0:03:01.7]} 3... a6 {[%clk 0:02:54]} 4.
e3 {[%clk 0:03:01.6]} 4... b6 {[%clk 0:02:53.2]} 5. Nf3 {[%clk 0:02:57.4]} 5...
Bb7 {[%clk 0:02:53.5]} 6. Ne5 {[%clk 0:02:57.3]} 6... e6 {[%clk 0:02:46.7]} 7.
g4 {[%clk 0:02:56.6]} 7... c5 {[%clk 0:02:46.6]} 8. g5 {[%clk 0:02:55.8]} 8...
Nfd7 {[%clk 0:02:45.7]} 9. h4 {[%clk 0:02:55.1]} 9... Nc6 {[%clk 0:02:44.3]} 10.
Nxc6 {[%clk 0:02:46.2]} 10... Bxc6 {[%clk 0:02:44.5]} 11. Bh3 {[%clk 0:02:46.9]}
11... b5 {[%clk 0:02:19.8]} 12. Ne2 {[%clk 0:02:45.5]} 12... Nb6 {[%clk
0:02:17.5]} 13. Kf1 {[%clk 0:02:42.2]} 13... Bd6 {[%clk 0:02:16.5]} 14. Kg2
{[%clk 0:02:41.1]} 14... Qe7 {[%clk 0:02:12]} 15. Bxd6 {[%clk 0:02:37.2]} 15...
Qxd6 {[%clk 0:02:12.3]} 16. f4 {[%clk 0:02:37.3]} 16... O-O-O {[%clk 0:02:02.3]}
17. b3 {[%clk 0:02:26]} 17... Kb7 {[%clk 0:01:50.1]} 18. a4 {[%clk 0:02:25.3]}
18... bxa4 {[%clk 0:01:48.8]} 19. bxa4 {[%clk 0:02:24.7]} 19... Ka7 {[%clk
0:01:44.3]} 20. c3 {[%clk 0:02:12.7]} 20... Rb8 {[%clk 0:01:43.2]} 21. Kf2
{[%clk 0:02:08.8]} 21... Nc4 {[%clk 0:01:37.9]} 22. dxc5 {[%clk 0:02:05.3]}
22... Qxc5 {[%clk 0:01:38.1]} 23. Qd4 {[%clk 0:02:05.8]} 23... Qxd4 {[%clk
0:01:38.3]} 24. Nxd4 {[%clk 0:02:01.1]} 24... Rb2+ {[%clk 0:01:38.6]} 25. Kg3
{[%clk 0:01:57.2]} 25... Bd7 {[%clk 0:01:37.5]} 26. Rhb1 {[%clk 0:01:57.6]}
26... Rxb1 {[%clk 0:01:25.9]} 27. Rxb1 {[%clk 0:01:58.5]} 27... Nxe3 {[%clk
0:01:26.2]} 28. Kf2 {[%clk 0:01:51.7]} 28... Nc4 {[%clk 0:01:22.9]} 29. Bf1
{[%clk 0:01:47.8]} 29... Nd6 {[%clk 0:01:18.2]} 30. a5 {[%clk 0:01:41.3]} 30...
Ne4+ {[%clk 0:01:05.5]} 31. Ke3 {[%clk 0:01:40.3]} 31... Rc8 {[%clk 0:01:02.1]}
32. c4 {[%clk 0:01:38.6]} 32... Rc5 {[%clk 0:00:49.8]} 33. Rb6 {[%clk
0:01:33.8]} 33... Rxa5 {[%clk 0:00:49.1]} 34. Rb3 {[%clk 0:01:22.2]} 34... Ra1
{[%clk 0:00:44.6]} 35. Bg2 {[%clk 0:01:14.9]} 35... Re1+ {[%clk 0:00:43.9]} 36.
Kd3 {[%clk 0:01:13.6]} 36... Nc5+ {[%clk 0:00:43.9]} 37. Kd2 {[%clk 0:01:13.1]}
37... Nxb3+ {[%clk 0:00:43.6]} 38. Kxe1 {[%clk 0:01:13.4]} 38... Nxd4 {[%clk
0:00:43.7]} 0-1

[Event "Early-Titled-Tuesday-Blitz-January-23-2024"]
[Site "Chess.com"]
[Date "2024.01.23"]
[Round "4"]
[White "jcibarra"]
[Black "AwareIdea"]
[Result "1-0"]
[WhiteElo "2833"]
[BlackElo "2533"]
[TimeControl "180+1"]
[EndTime "8:37:00 PST"]
[Termination "jcibarra won by resignation"]

1. e4 {[%clk 0:03:00.9]} 1... e5 {[%clk 0:02:59.2]} 2. Nf3 {[%clk 0:03:00.5]}
2... Nc6 {[%clk 0:02:59.1]} 3. Bb5 {[%clk 0:03:00.8]} 3... Nf6 {[%clk
0:02:59.1]} 4. O-O {[%clk 0:03:00.3]} 4... Nxe4 {[%clk 0:02:59.5]} 5. d4 {[%clk
0:03:00.6]} 5... Nd6 {[%clk 0:02:59.7]} 6. dxe5 {[%clk 0:03:00.7]} 6... Nxb5
{[%clk 0:03:00]} 7. a4 {[%clk 0:03:01.3]} 7... Nbd4 {[%clk 0:03:00.2]} 8. Nxd4
{[%clk 0:03:01.7]} 8... Nxd4 {[%clk 0:03:01.1]} 9. Qxd4 {[%clk 0:03:01.5]} 9...
d5 {[%clk 0:03:02]} 10. Qd3 {[%clk 0:03:01.7]} 10... Be7 {[%clk 0:02:50.1]} 11.
Qg3 {[%clk 0:03:01.2]} 11... g5 {[%clk 0:02:38.8]} 12. Nc3 {[%clk 0:02:56.2]}
12... Be6 {[%clk 0:02:34.1]} 13. Rd1 {[%clk 0:02:50.4]} 13... Rg8 {[%clk
0:02:17]} 14. Nxd5 {[%clk 0:02:39.1]} 14... Bxd5 {[%clk 0:02:14.5]} 15. c4
{[%clk 0:02:38.7]} 15... c6 {[%clk 0:02:08.6]} 16. cxd5 {[%clk 0:02:38.1]} 16...
cxd5 {[%clk 0:02:09.5]} 17. Qb3 {[%clk 0:02:33.3]} 17... Qd7 {[%clk 0:01:45]}
18. Rxd5 {[%clk 0:02:28]} 18... Qc6 {[%clk 0:01:30.4]} 19. Be3 {[%clk
0:02:28.6]} 19... b6 {[%clk 0:00:56.1]} 20. Rc1 {[%clk 0:02:26.5]} 20... Qe6
{[%clk 0:00:55.9]} 21. Qb5+ {[%clk 0:02:25.2]} 21... Kf8 {[%clk 0:00:55.9]} 22.
h3 {[%clk 0:02:16.4]} 22... Rc8 {[%clk 0:00:52.7]} 23. Rxc8+ {[%clk 0:02:10]}
23... Qxc8 {[%clk 0:00:53.6]} 24. Qd3 {[%clk 0:02:09.6]} 24... Rg6 {[%clk
0:00:51.6]} 25. Rd7 {[%clk 0:01:58]} 25... g4 {[%clk 0:00:41.8]} 26. hxg4 {[%clk
0:01:48.5]} 26... Rxg4 {[%clk 0:00:40.4]} 27. Qxh7 {[%clk 0:01:34.9]} 27...
Rxg2+ {[%clk 0:00:08.4]} 28. Kxg2 {[%clk 0:01:32.6]} 28... Qc6+ {[%clk
0:00:07.9]} 29. f3 {[%clk 0:01:29.4]} 1-0

[Event "Early-Titled-Tuesday-Blitz-January-23-2024"]
[Site "Chess.com"]
[Date "2024.01.23"]
[Round "4"]
[White "Cheer_Down"]
[Black "Andrey_Klymchuk"]
[Result "1-0"]
[WhiteElo "2454"]
[BlackElo "2745"]
[TimeControl "180+1"]
[EndTime "8:37:02 PST"]
[Termination "Cheer_Down won by resignation"]

1. e4 {[%clk 0:02:59.4]} 1... c6 {[%clk 0:02:59.6]} 2. d4 {[%clk 0:02:58.3]}
2... d5 {[%clk 0:03:00.5]} 3. e5 {[%clk 0:02:58.8]} 3... Bf5 {[%clk 0:03:00]} 4.
h4 {[%clk 0:02:57.8]} 4... h5 {[%clk 0:02:59.7]} 5. Bd3 {[%clk 0:02:56.9]} 5...
Bxd3 {[%clk 0:02:59.5]} 6. Qxd3 {[%clk 0:02:57.8]} 6... Qa5+ {[%clk 0:02:59.1]}
7. b4 {[%clk 0:02:57]} 7... Qxb4+ {[%clk 0:02:58.4]} 8. Nd2 {[%clk 0:02:56.8]}
8... e6 {[%clk 0:02:58.3]} 9. Rb1 {[%clk 0:02:51.4]} 9... Qe7 {[%clk 0:02:58.2]}
10. c4 {[%clk 0:02:50.4]} 10... Qc7 {[%clk 0:02:51.6]} 11. Ngf3 {[%clk
0:02:47.7]} 11... Nh6 {[%clk 0:02:49.5]} 12. O-O {[%clk 0:02:37.1]} 12... dxc4
{[%clk 0:02:48.9]} 13. Nxc4 {[%clk 0:02:35.1]} 13... Nd7 {[%clk 0:02:48.6]} 14.
Ba3 {[%clk 0:02:29.9]} 14... Nb6 {[%clk 0:02:38.9]} 15. Bxf8 {[%clk 0:02:15.6]}
15... Kxf8 {[%clk 0:02:34.5]} 16. Nd6 {[%clk 0:02:15.5]} 16... g6 {[%clk
0:02:24.8]} 17. a4 {[%clk 0:02:14.5]} 17... Nf5 {[%clk 0:02:24]} 18. a5 {[%clk
0:02:11.7]} 18... Nxd6 {[%clk 0:01:48.2]} 19. axb6 {[%clk 0:02:10.7]} 19... Qd8
{[%clk 0:01:36.5]} 20. exd6 {[%clk 0:02:10]} 20... a6 {[%clk 0:01:36.4]} 21. Ne5
{[%clk 0:02:07.2]} 21... Kg7 {[%clk 0:01:31.6]} 22. Nc4 {[%clk 0:01:52.1]} 22...
Qxh4 {[%clk 0:01:30.9]} 23. Rfe1 {[%clk 0:01:44.1]} 23... Rad8 {[%clk
0:01:28.1]} 24. Re5 {[%clk 0:01:38.6]} 24... Qf4 {[%clk 0:01:23.4]} 25. Rbe1
{[%clk 0:01:37.5]} 25... h4 {[%clk 0:01:22.9]} 26. R1e4 {[%clk 0:01:21.9]} 26...
Qc1+ {[%clk 0:01:15.4]} 27. Kh2 {[%clk 0:01:22.1]} 27... Qh6 {[%clk 0:00:52]}
28. Rg4 {[%clk 0:01:19.5]} 28... h3 {[%clk 0:00:49.6]} 29. gxh3 {[%clk
0:01:14.7]} 29... Rd7 {[%clk 0:00:45.2]} 30. Reg5 {[%clk 0:01:09.3]} 30... Rh7
{[%clk 0:00:43.7]} 31. Ne5 {[%clk 0:01:00.9]} 31... Rxd6 {[%clk 0:00:43.8]} 32.
Rxg6+ {[%clk 0:01:01.2]} 32... fxg6 {[%clk 0:00:43.5]} 33. Rxg6+ {[%clk
0:01:01.5]} 33... Kf8 {[%clk 0:00:43.8]} 34. Rxh6 {[%clk 0:01:00.8]} 34... Rxh6
{[%clk 0:00:44.7]} 35. Qf3+ {[%clk 0:01:00.3]} 1-0